fUST/lending_fUST_20260220
["ID","MTS","AMOUNT","RATE_DAILY","PERIOD"]
[406007709,1771527040527,-743.60641596,0.00023337,2]
[406007711,1771527040536,-500.0,0.00023512,2]
[406007713,1771527040546,-500.0,0.00023513,2]
[406007715,1771527040555,-6881.9669904,0.00023613,2]
[406007717,1771527040564,-1382.0,0.00023796,2]
[406007719,1771527040573,-1511.56187922,0.00023796,2]
[406007751,1771527046110,-2122.19080603,0.00013562,2]
[406007752,1771527046121,-2877.80919397,0.00013562,2]
[406007753,1771527046130,-662.43812078,0.00023796,2]
[406007754,1771527046140,-635.0,0.00023796,2]
[406007755,1771527046152,-427.0,0.00023796,2]
[406007756,1771527046161,-175.06660913,0.00024395,5]
[406007757,1771527046170,-488.9425048,0.000245,4]
[406007758,1771527046179,-500.0,0.0002464,2]
[406007759,1771527046188,-336.5773152,0.00024641,2]
[406007760,1771527046198,-10757.024777,0.00024641,2]
[406007761,1771527046207,-202.02207628,0.000248,2]
[406007762,1771527046216,-3781.09,0.0002489,10]
[406007763,1771527046225,-3150.9,0.0002489,10]
[406007764,1771527046235,-2625.75,0.0002489,10]
[406007765,1771527046244,-2188.13,0.0002489,10]
[406007766,1771527046253,-500.0,0.00024899,2]
[406007767,1771527046265,-253.86,0.00024899,2]
[406007768,1771527046275,-632.33459023,0.000249,2]
[406007769,1771527046286,-162.1,0.000249,7]
[406007770,1771527046296,-218.25,0.000249,7]
[406007771,1771527046305,-151.0,0.000249,2]
[406007772,1771527046314,-5219.20127725,0.000249,2]
[406007773,1771527046331,-4040.87487468,0.000249,2]
[406007774,1771527046342,-1627.47864612,0.000249,2]
[406007777,1771527046537,-502.67061583,0.000249,2]
[406007778,1771528025124,-5000.0,0.00012729,2]
[406007779,1771528025144,-200.37375744,0.00012858,2]
[406007780,1771528025166,-150.0,0.00012958,2]
[406007781,1771528025192,-500.0,0.00013106,2]
[406007782,1771528025215,-500.0,0.00013273,2]
[406007783,1771528025237,-500.0,0.00013273,2]
[406007784,1771528025258,-574.19,0.00013698,2]
[406007785,1771528025281,-500.0,0.00013699,2]
[406007786,1771528025301,-500.0,0.00013699,2]
[406007787,1771528025322,-160.78699089,0.00013699,2]
[406007788,1771528025342,-275.54974256,0.00013699,2]
[406007789,1771528025363,-500.0,0.00013699,2]
[406007790,1771528025384,-500.0,0.00013699,2]
[406007791,1771528025405,-500.0,0.00013699,2]
[406007792,1771528025426,-500.0,0.00013699,2]
[406007793,1771528025445,-500.0,0.00013699,2]
[406007794,1771528025464,-500.0,0.00013699,2]
[406007795,1771528025483,-500.0,0.00013699,2]
[406007796,1771528025502,-500.0,0.00013699,2]
[406007797,1771528025525,-500.0,0.00013699,2]
[406007798,1771528025544,-500.0,0.00013699,2]
[406007799,1771528025570,-158.0,0.00013973,2]
[406007800,1771528025597,-177.0,0.00014958,2]
[406007801,1771528025622,-162.82311654,0.00016958,2]
[406007802,1771528160106,-5000.0,0.00016788,2]
[406007803,1771528160128,-150.0,0.00016873,2]
[406007804,1771528214206,500.0,0.00013699,2]
[406007843,1771528232186,-877.74299946,0.00018684,2]
[406007844,1771528232198,-925.33631496,0.00018684,2]
[406007850,1771528238199,-3196.92068558,0.00018684,2]
[406007852,1771528238209,-254.14295146,0.00018873,2]
[406007854,1771528238219,-500.0,0.00023215,2]
[406007855,1771528238229,-500.0,0.00023215,2]
[406007856,1771528238240,-500.0,0.00023215,2]
[406007857,1771528238250,-500.0,0.00023215,2]
[406007858,1771528238259,-500.0,0.00023215,2]
[406007859,1771528238268,-500.0,0.00023215,2]
[406007860,1771528238277,-573.48089266,0.00023215,2]
[406007861,1771528238286,-427.4554703,0.00023215,2]
[406007894,1771528246131,-4153.08446676,0.00023115,2]
[406007896,1771528246144,-345.289305,0.00023115,2]
[406007902,1771528246294,-7795.40376826,0.00023115,2]
[406007903,1771528246348,-502.5778344,0.00023115,2]
[406007904,1771528246362,-985.08670455,0.00023115,2]
[406007905,1771528246383,-72.5445297,0.00023215,2]
[406007906,1771528246395,-500.0,0.00023215,2]
[406007908,1771528246404,-209.53622943,0.00023215,2]
[406007910,1771528246413,-500.0,0.00023215,2]
[406007911,1771528246423,-500.0,0.00023215,2]
[406007912,1771528246434,-500.0,0.00023215,2]
[406007913,1771528246443,-442.83253632,0.00023215,2]
[406007914,1771528246455,-57.16746368,0.00023215,2]
[406007915,1771528246464,-500.0,0.00023215,2]
[406007916,1771528246473,-500.0,0.00023215,2]
[406007917,1771528246482,-588.83927502,0.00023215,2]
[406007918,1771528246491,-239.44354806,0.00023215,2]
[406007919,1771528246500,-500.0,0.00023215,2]
[406007920,1771528246509,-248.82706089,0.00023215,2]
[406007921,1771528246518,-500.0,0.00023215,2]
[406007922,1771528246527,-252.4329864,0.00023216,2]
[406007923,1771528246536,-8067.7685827,0.00023216,2]
[406007924,1771528246546,-743.60641596,0.00023474,2]
[406007925,1771528246555,-152.217,0.00023796,2]
[406007926,1771528246564,-150.572,0.00023796,2]
[406007927,1771528246574,-250.0,0.00023796,2]
[406007928,1771528246583,-150.689,0.00023796,2]
[406007929,1771528246593,-1382.0,0.00023796,2]
[406007930,1771528246602,-635.0,0.00023796,2]
[406007931,1771528246611,-2174.0,0.00023796,2]
[406007932,1771528246620,-500.0,0.00023984,2]
[406007933,1771528246629,-664.31525786,0.0002399,2]
[406007934,1771528246638,-421.55639349,0.00024402,2]
[406007935,1771528246648,-367.68833498,0.00024557,5]
[406007936,1771528246657,-700.26643652,0.00024557,5]
[406007937,1771528246666,-345.7027207,0.00024658,2]
[406007938,1771528246675,-224.43267643,0.00024726,2]
[406007939,1771528246685,-500.0,0.0002473,2]
[406007940,1771528246694,-500.0,0.00024887,19]
[406007941,1771528246704,-500.0,0.00024899,2]
[406007942,1771528246713,-537.67484731,0.000249,2]
[406007944,1771529244118,-5000.0,0.00011624,2]
[406007945,1771529244140,-150.0,0.000118,2]
[406007946,1771529244160,-587.0,0.0001186,2]
[406007947,1771529244180,-164.519411,0.00011979,2]
[406007948,1771529244200,-500.0,0.00013273,2]
[406007949,1771529244220,-317.81319698,0.00013273,2]
[406007950,1771529244240,-189.0,0.00013698,2]
[406007951,1771529244261,-300.0,0.00013698,2]
[406007952,1771529244280,-500.0,0.00013699,2]
[406007953,1771529244300,-500.0,0.00013699,2]
[406007954,1771529244320,-500.0,0.00013699,2]
[406007955,1771529244340,-500.0,0.00013699,2]
[406007956,1771529244359,-516.9627572,0.00013699,2]
[406007957,1771529244378,-500.0,0.00013699,2]
[406007958,1771529244399,-500.0,0.00013699,2]
[406007959,1771529244418,-500.0,0.00013699,2]
[406007960,1771529244442,-285.0,0.00013801,2]
[406007961,1771529244462,-500.0,0.00014247,2]
[406007962,1771529244482,-500.0,0.00014247,2]
[406007963,1771529244503,-250.0,0.00015538,2]
[406007964,1771529244524,-5375.9152443,0.00020279,2]
[406007965,1771529245074,-287.46834324,0.00020279,2]
[406007966,1771529360129,-5000.0,0.00020076,2]
[406007967,1771529360151,-3178.613716,0.00020279,2]
[406008001,1771529432243,-790.38279329,0.00020076,2]
[406008003,1771529432255,-963.17875591,0.00020076,2]
[406008023,1771529438295,-348.72194464,0.00020076,2]
[406008054,1771529438788,-2897.71650616,0.00020076,2]
[406008055,1771529438798,-1158.00269646,0.00020279,2]
[406008056,1771529438808,-635.10837,0.00020767,2]
[406008057,1771529438818,-1000.0,0.00020941,2]
[406008058,1771529438828,-162.0,0.00022,2]
[406008059,1771529438838,-162.0,0.00022192,7]
[406008060,1771529438847,-1239.458779,0.00022874,2]
[406008061,1771529438857,-208.6507382,0.00022898,2]
[406008062,1771529438866,-635.0,0.00022998,2]
[406008063,1771529438875,-2174.0,0.00022998,2]
[406008064,1771529438884,-427.0,0.00022998,2]
[406008065,1771529438894,-182.208,0.00022998,2]
[406008066,1771529438903,-500.0,0.00023011,2]
[406008067,1771529438912,-162.0,0.00023014,7]
[406008068,1771529438922,-743.60641596,0.00023063,2]
[406008069,1771529438932,-156.5615492,0.00023326,2]
[406008070,1771529438942,-356.6151366,0.00023326,2]
[406008071,1771529438952,-287.64880834,0.00023326,2]
[406008072,1771529438962,-500.0,0.00023326,2]
[406008073,1771529438972,-500.0,0.00023326,2]
[406008074,1771529438982,-1484.7293672,0.00023391,2]
[406008075,1771529438992,-189.3247398,0.00023391,2]
[406008076,1771529439002,-1866.04759867,0.00023391,2]
[406008077,1771529439015,-4184.77883833,0.00023391,2]
[406008078,1771529439028,-193.95410735,0.00023427,2]
[406008079,1771529439044,-306.04589265,0.00023427,2]
[406008080,1771529439057,-250.0,0.00023654,2]
[406008081,1771529439070,-250.0,0.00023654,2]
[406008082,1771529439083,-332.81874537,0.00023654,2]
[406008083,1771529439095,-24.11188143,0.00023654,2]
[406008113,1771529446301,-1204.26871757,0.00023318,2]
[406008114,1771529446356,-3795.73128243,0.00023318,2]
[406008115,1771529446367,-5990.06155405,0.00023554,2]
[406008116,1771529446380,-225.88811857,0.00023654,2]
[406008117,1771529446398,-250.0,0.00023654,2]
[406008118,1771529446415,-319.98218659,0.00023654,2]
[406008120,1771529446435,-151.0,0.00023654,2]
[406008122,1771529446445,-181.08010149,0.00023654,2]
[406008123,1771529446455,-250.0,0.00023654,2]
[406008124,1771529446465,-151.0,0.00023654,2]
[406008126,1771529446477,-500.0,0.00023654,2]
[406008128,1771529446492,-187.78006525,0.00023654,2]
[406008129,1771529446503,-250.0,0.00023654,2]
[406008130,1771529446514,-151.0,0.00023654,2]
[406008131,1771529446526,-194.72792766,0.00023654,2]
[406008132,1771529446538,-500.0,0.00023654,2]
[406008133,1771529446548,-250.0,0.00023654,2]
[406008134,1771529446560,-151.0,0.00023654,2]
[406008135,1771529446570,-201.93286099,0.00023654,2]
[406008136,1771529446581,-500.0,0.00023654,2]
[406008137,1771529446591,-250.0,0.00023654,2]
[406008138,1771529446602,-151.0,0.00023654,2]
[406008139,1771529446612,-500.0,0.00023654,2]
[406008140,1771529446623,-209.40437684,0.00023654,2]
[406008141,1771529446634,-250.0,0.00023654,2]
[406008142,1771529446644,-151.0,0.00023654,2]
[406008143,1771529446657,-217.15233878,0.00023654,2]
[406008144,1771529446670,-500.0,0.00023654,2]
[406008145,1771529446680,-250.0,0.00023654,2]
[406008146,1771529446691,-151.0,0.00023654,2]
[406008147,1771529446702,-500.0,0.00023654,2]
[406008148,1771529446717,-225.18697532,0.00023654,2]
[406008149,1771529446730,-292.4410008,0.00023654,2]
[406008150,1771529446741,-186.48551683,0.00023654,2]
[406008151,1771529446752,-500.0,0.00023654,2]
[406008152,1771529446763,-233.51889341,0.00023654,2]
[406008153,1771529446775,-500.0,0.00023654,2]
[406008154,1771529446787,-242.15909246,0.00023654,2]
[406008155,1771529446798,-251.11897888,0.00023654,2]
[406008156,1771529446809,-500.0,0.00023654,2]
[406008157,1771529446820,-250.0,0.00023654,2]
[406008158,1771529446831,-250.0,0.00023654,2]
[406008159,1771529446842,-250.0,0.00023654,2]
[406008160,1771529446854,-260.4103811,0.00023654,2]
[406008161,1771529446864,-500.0,0.00023654,2]
[406008162,1771529446875,-250.0,0.00023654,2]
[406008163,1771529446886,-250.0,0.00023654,2]
[406008164,1771529446897,-270.0455652,0.00023654,2]
[406008165,1771529446907,-500.0,0.00023654,2]
[406008166,1771529446918,-250.0,0.00023654,2]
[406008167,1771529446928,-280.03725112,0.00023654,2]
[406008168,1771529446939,-500.0,0.00023654,2]
[406008169,1771529446949,-250.0,0.00023654,2]
[406008170,1771529446960,-290.39862941,0.00023654,2]
[406008171,1771529446970,-500.0,0.00023654,2]
[406008172,1771529446981,-250.0,0.00023654,2]
[406008173,1771529446992,-301.1433787,0.00023654,2]
[406008174,1771529447003,-501.30030461,0.00023654,2]
[406008175,1771529447014,-250.0,0.00023654,2]
[406008176,1771529447023,-250.0,0.00023654,2]
[406008177,1771529447032,-250.0,0.00023654,2]
[406008178,1771529447045,-250.0,0.00023654,2]
[406008179,1771529447160,-250.0,0.00023654,2]
[406008180,1771529447215,-250.0,0.00023654,2]
[406008181,1771529447226,-250.0,0.00023654,2]
[406008182,1771529447236,-160.42286585,0.00023654,2]
[406008183,1771529447246,-250.0,0.00023654,2]
[406008184,1771529447256,-1239.458779,0.00023837,2]
[406008185,1771529447265,-1194.57169668,0.00024035,2]
[406008186,1771529447275,-166.0,0.00024164,7]
[406008187,1771529447285,-281.03759566,0.00024402,2]
[406008188,1771529447294,-286.48515132,0.00024555,2]
[406008189,1771529447303,-500.0,0.00024555,2]
[406008190,1771529447312,-206.13753035,0.00024641,2]
[406008191,1771529447322,-191.79363724,0.00024641,2]
[406008192,1771529447334,-153.72873735,0.00024641,2]
[406008193,1771529447343,-265.963,0.00024641,7]
[406008194,1771529447353,-767.17454894,0.00024641,2]
[406008195,1771529447362,-541.53497572,0.00024654,5]
[406008196,1771529447371,-462.60198457,0.000247,2]
[406008197,1771529447380,-458.45832785,0.00024725,19]
[406008198,1771529447390,-500.0,0.00024725,2]
[406008199,1771529447399,-4637.67593809,0.00024726,2]
[406008200,1771529447408,-1239.458779,0.000248,2]
[406008201,1771529447417,-500.0,0.00024808,2]
[406008202,1771529447426,-500.0,0.00024884,2]
[406008203,1771529447436,-500.0,0.00024989,2]
[406008204,1771529447445,-500.0,0.00024989,2]
[406008205,1771529447455,-14920.20714346,0.0002499,2]
[406008206,1771529447511,-844.16064784,0.0002499,2]
[406008207,1771529447520,-1823.44,0.0002499,10]
[406008208,1771529447531,-1519.53,0.0002499,10]
[406008209,1771529447540,-1266.28,0.0002499,10]
[406008210,1771529447549,-1055.23,0.0002499,10]
[406008211,1771529447558,-500.0,0.00024998,19]
[406008212,1771529447568,-500.0,0.00024998,19]
[406008213,1771529447577,-500.0,0.00024998,2]
[406008214,1771529447586,-500.0,0.00024998,10]
[406008215,1771529447595,-500.0,0.00024998,2]
[406008216,1771529447604,-500.0,0.00024999,19]
[406008217,1771529447613,-500.0,0.00024999,19]
[406008218,1771529447622,-500.0,0.00024999,19]
[406008219,1771529447631,-500.0,0.00024999,19]
[406008220,1771529447640,-476.51557939,0.00024999,19]
[406008221,1771529447649,-500.0,0.00024999,2]
[406008222,1771529447658,-500.0,0.00024999,2]
[406008223,1771529447667,-500.0,0.00024999,2]
[406008224,1771529447676,-500.0,0.00024999,10]
[406008225,1771529447685,-500.0,0.00024999,2]
[406008226,1771529447694,-500.0,0.00024999,2]
[406008227,1771529447703,-325.75771005,0.00024999,2]
[406008228,1771529447712,-385.84962689,0.00024999,2]
[406008229,1771529447770,-114.15037311,0.00024999,2]
[406008230,1771529447780,-500.0,0.00024999,2]
[406008231,1771529447789,-500.0,0.00024999,2]
[406008232,1771529447798,-586.64428478,0.00025,3]
[406008233,1771529520713,-333.77520945,0.00013562,2]
[406008234,1771530338125,-397.57970979,0.00012943,2]
[406008235,1771530565081,-2439.528896,0.00012814,2]
[406008252,1771530632336,-2560.471104,0.00012814,2]
[406008253,1771530632346,-150.0,0.00012944,2]
[406008255,1771530632356,-300.0,0.00013272,2]
[406008256,1771530632365,-303.0,0.00013272,2]
[406008257,1771530632375,-500.0,0.00013273,2]
[406008258,1771530632384,-500.0,0.00013273,2]
[406008259,1771530632394,-500.0,0.00013273,2]
[406008260,1771530632403,-500.0,0.00013273,2]
[406008261,1771530632414,-500.0,0.00013699,2]
[406008262,1771530632430,-187.68681059,0.00013699,2]
[406008263,1771530632440,-500.0,0.00013699,2]
[406008264,1771530632450,-500.0,0.00013699,2]
[406008265,1771530632459,-500.0,0.00013699,2]
[406008266,1771530632468,-500.0,0.00013699,2]
[406008267,1771530632478,-500.0,0.00013699,2]
[406008268,1771530632487,-464.03852694,0.00013699,2]
[406008269,1771530632497,-500.0,0.00013699,2]
[406008270,1771530632506,-163.39504195,0.00013699,2]
[406008271,1771530632516,-500.0,0.00013699,2]
[406008272,1771530632525,-297.48243306,0.00013699,2]
[406008273,1771530632541,-206.01562793,0.00013699,2]
[406008274,1771530632550,-159.15023111,0.00013699,2]
[406008275,1771530632560,-1.6621642,0.00013821,2]
[406008284,1771530640727,-530.71024294,0.00013821,2]
[406008285,1771530640737,-500.0,0.00013821,2]
[406008286,1771530640747,-224.59940514,0.00013973,2]
[406008287,1771530640757,-501.05966748,0.00014247,2]
[406008288,1771530640767,-260.28993953,0.00014247,2]
[406008289,1771530640778,-414.33651481,0.00014247,2]
[406008290,1771530640788,-501.77018036,0.00014247,2]
[406008291,1771530640797,-294.35583662,0.00014247,2]
[406008292,1771530640806,-177.0,0.00014944,2]
[406008293,1771530640819,-297.88,0.00015342,4]
[406008294,1771530640830,-204.0,0.00016944,2]
[406008295,1771530640839,-162.0,0.00018944,2]
[406008296,1771530640849,-698.63570721,0.00022881,2]
[406008297,1771530640872,-44.97070875,0.00022881,2]
[406008298,1771530640881,-500.0,0.00023326,2]
[406008299,1771530640894,-500.0,0.00023326,2]
[406008300,1771530640903,-156.4479007,0.00023326,2]
[406008308,1771530644958,-126.72790105,0.00023326,2]
[406008309,1771530644968,-206.65785599,0.00023597,2]
[406008310,1771530644978,-419.60462242,0.00023597,2]
[406008311,1771530644987,-54.00089608,0.00023597,2]
[406008315,1771530646442,-108.22528424,0.00023597,2]
[406008316,1771530646453,-180.74681768,0.00023597,2]
[406008317,1771530646464,-25.71148642,0.00023597,2]
[406008318,1771531320355,-306.41251869,0.00013562,2]
[406008320,1771531751162,-215.55614072,0.00012623,2]
[406008321,1771531751185,-5000.0,0.0001275,2]
[406008322,1771531751209,-500.0,0.00013273,2]
[406008323,1771531751231,-500.0,0.00013699,2]
[406008324,1771531751253,-500.0,0.00013699,2]
[406008325,1771531751275,-500.0,0.00013699,2]
[406008326,1771531751296,-204.28268018,0.00013699,2]
[406008327,1771531751318,-500.0,0.00013699,2]
[406008328,1771531751339,-189.88697358,0.00013699,2]
[406008329,1771531751362,-500.0,0.00013699,2]
[406008330,1771531751383,-500.0,0.00013699,2]
[406008331,1771531751407,-500.0,0.00014247,2]
[406008332,1771531751428,-224.384877,0.00014959,2]
[406008333,1771531751451,-387.4583748,0.00014959,2]
[406008334,1771531751472,-2159.7417349,0.00014959,2]
[406008335,1771531751494,-189.3247398,0.00014959,2]
[406008336,1771531754147,-2159.7417349,0.0001693,2]
[406008337,1771531754173,-387.4583748,0.00016938,2]
[406008338,1771531754195,-189.3247398,0.00018492,2]
[406008339,1771531754216,-180.3933326,0.00018876,2]
[406008340,1771531754236,-2159.7417349,0.00018901,2]
[406008341,1771531754435,-387.4583748,0.00018917,2]
[406008342,1771531754458,-341.14396099,0.00019548,2]
[406008343,1771531754478,-1238.27848511,0.00019549,2]
[406008415,1771531837746,-372.16272028,0.00016761,2]
[406008416,1771531837758,-4308.14506023,0.00016761,2]
[406008453,1771531845109,-319.69221949,0.00016761,2]
[406008454,1771531845120,-500.0,0.00019548,2]
[406008455,1771531845133,-500.0,0.00019548,2]
[406008456,1771531845143,-119.46594996,0.00019548,2]
[406008459,1771531845800,-259.60651063,0.00019548,2]
[406008460,1771531845809,-500.0,0.00019548,2]
[406008461,1771531845818,-8761.72151489,0.00019549,2]
[406008462,1771531845828,-5241.30385982,0.00020796,2]
[406008463,1771531845838,-2159.7417349,0.00020872,2]
[406008464,1771531845847,-387.4583748,0.00020897,2]
[406008465,1771531845856,-181.0,0.00021146,2]
[406008466,1771531845866,-424.0,0.00021146,2]
[406008467,1771531845875,-1726.14273512,0.00021619,2]
[406008468,1771531845884,-189.3247398,0.00022024,2]
[406008469,1771531845893,-224.384877,0.00022177,2]
[406008470,1771531845903,-619.729389,0.00022181,2]
[406008471,1771531845912,-2166.1399029,0.00022224,2]
[406008472,1771531845922,-3065.62949758,0.00022949,2]
[406008473,1771531845931,-276.4350155,0.00023017,2]
[406008474,1771531845940,-500.0,0.00023114,2]
[406008475,1771531845950,-619.729389,0.00023115,2]
[406008476,1771531845959,-743.60641596,0.00023302,2]
[406008477,1771531845968,-500.0,0.00023331,2]
[406008478,1771531845977,-202.56021862,0.00023394,2]
[406008479,1771531845986,-383.92,0.00023498,2]
[406008480,1771531845996,-500.0,0.00023596,2]
[406008481,1771531846006,-152.005,0.00023598,2]
[406008482,1771531846018,-150.0,0.00023598,2]
[406008483,1771531846038,-150.0,0.00023598,2]
[406008484,1771531846047,-634.0,0.00023598,2]
[406008485,1771531846057,-1382.0,0.00023598,2]
[406008486,1771531846066,-2174.0,0.00023598,2]
[406008487,1771531846075,-151.0,0.00023598,2]
[406008488,1771531846089,-181.08010149,0.000237,2]
[406008489,1771531846110,-161.92789552,0.000237,2]
[406008490,1771531846120,-183.78063,0.00023855,2]
[406008491,1771531846136,-183.78063,0.00023855,2]
[406008492,1771531846145,-183.78063,0.00023855,2]
[406008493,1771531846165,-183.78063,0.00023855,2]
[406008494,1771531846185,-151.0,0.00023855,2]
[406008495,1771531846202,-151.0,0.00023855,2]
[406008496,1771531846213,-212.77,0.000239,5]
[406008497,1771531846222,-151.0,0.00023955,2]
[406008498,1771531846232,-151.0,0.00023955,2]
[406008499,1771531846241,-302.07825632,0.00023977,2]
[406008500,1771531846250,-543.74086138,0.00023977,2]
[406008501,1771531846260,-619.729389,0.00024049,2]
[406008502,1771531846272,-600.0,0.00024069,10]
[406008503,1771531846284,-500.0,0.00024116,2]
[406008504,1771531846294,-500.0,0.00024116,2]
[406008505,1771531846304,-193.95410735,0.00024116,2]
[406008506,1771531846313,-151.0,0.00024117,2]
[406008507,1771531846322,-151.0,0.00024117,2]
[406008508,1771531846332,-183.78063,0.00024117,2]
[406008509,1771531846342,-183.78063,0.00024117,2]
[406008510,1771531846351,-183.78063,0.00024117,2]
[406008511,1771531846361,-183.78063,0.00024117,2]
[406008512,1771531846370,-151.0,0.00024117,2]
[406008513,1771531846379,-151.0,0.00024117,2]
[406008514,1771531846389,-396.0,0.00024139,10]
[406008515,1771531846398,-181.0,0.00024146,2]
[406008516,1771531846408,-500.0,0.00024389,2]
[406008517,1771531846419,-311.0,0.00024469,10]
[406008518,1771531846430,-187.3583971,0.00024499,2]
[406008519,1771531846442,-397.63449345,0.00024625,5]
[406008520,1771531846453,-500.0,0.00024763,2]
[406008521,1771531846463,-151.0,0.00024763,2]
[406008522,1771531846473,-308.40132304,0.0002488,2]
[406008523,1771531846482,-984.44690855,0.000249,2]
[406008524,1771531846492,-784.0,0.000249,2]
[406008525,1771531846502,-1060.01,0.0002498,4]
[406008526,1771531846511,-500.0,0.00024981,2]
[406008527,1771531846521,-183.78063,0.00024982,2]
[406008528,1771531846531,-183.78063,0.00024982,2]
[406008529,1771531846541,-183.78063,0.00024982,2]
[406008530,1771531846550,-183.78063,0.00024982,2]
[406008531,1771531846560,-151.0,0.00024982,2]
[406008532,1771531846571,-151.0,0.00024982,2]
[406008533,1771531846581,-619.729389,0.00024982,2]
[406008534,1771531846592,-500.0,0.00024989,2]
[406008535,1771531846601,-183.78063,0.0002499,2]
[406008536,1771531846610,-183.78063,0.0002499,2]
[406008537,1771531846620,-183.78063,0.0002499,2]
[406008538,1771531846629,-183.78063,0.0002499,2]
[406008540,1771531846639,-151.0,0.0002499,2]
[406008542,1771531846648,-212.263083,0.0002499,2]
[406008543,1771531846657,-463.75,0.0002499,10]
[406008544,1771531846667,-500.0,0.00024999,2]
[406008545,1771531846678,-500.0,0.00024999,2]
[406008546,1771531846687,-500.0,0.00024999,2]
[406008547,1771531846697,-500.0,0.00024999,2]
[406008548,1771531846706,-500.0,0.00024999,2]
[406008549,1771531846715,-500.0,0.00024999,2]
[406008550,1771531846724,-13777.19651159,0.00025,3]
[406008553,1771532950134,-191.49126801,0.0001,2]
[406008554,1771532950154,-426.45380717,0.00010618,2]
[406008555,1771532950176,-267.99567494,0.00010673,2]
[406008556,1771532950196,-267.99567494,0.00010673,2]
[406008557,1771532950216,-160.716765,0.00010673,2]
[406008558,1771532950236,-267.99567494,0.00010673,2]
[406008559,1771532950256,-267.99567494,0.00010673,2]
[406008560,1771532950275,-5000.0,0.00011455,2]
[406008561,1771532950299,-300.0,0.0001157,2]
[406008562,1771532950319,-5000.0,0.00011571,2]
[406008563,1771532950339,-560.4913344,0.00011688,2]
[406008564,1771532961138,-267.99567494,0.00010673,2]
[406008565,1771532961157,-4439.5086656,0.00011688,2]
[406008566,1771532961176,-172.16,0.000117,2]
[406008567,1771532961195,-267.99567494,0.00011743,2]
[406008568,1771532961212,-1370.2688399,0.00011806,2]
[406008569,1771532961230,-267.99567494,0.00011861,2]
[406008570,1771532961248,-267.99567494,0.00011861,2]
[406008571,1771532961266,-267.99567494,0.00011861,2]
[406008572,1771532961284,-50000.0,0.00011861,2]
[406008573,1771532961302,-267.99567494,0.00012552,2]
[406008574,1771532961319,-268.26367061,0.00012552,2]
[406008575,1771532961337,-267.99567494,0.00012552,2]
[406008576,1771532961355,-150.0,0.0001256,2]
[406008577,1771532961477,-247.29966158,0.00012621,2]
[406008608,1771533031810,-526.0,9e-05,2]
[406008609,1771533031820,-5000.0,0.0001046,2]
[406008610,1771533031831,-567.0,0.0001046,2]
[406008611,1771533031840,-1200.0,0.00010565,2]
[406008612,1771533031850,-5000.0,0.00010566,2]
[406008613,1771533031860,-300.0,0.00010672,2]
[406008614,1771533031869,-96.98103313,0.00010672,2]
[406008626,1771533040201,-1576.21356984,0.00010565,2]
[406008662,1771533044457,-806.99127554,0.00010565,2]
[406008669,1771533087464,-1331.80623752,0.00010459,2]
[406008673,1771534155105,-5000.0,7.575e-05,2]
[406008674,1771534155127,-156.59268286,7.652e-05,2]
[406008699,1771534231856,-5000.0,7.424e-05,2]
[406008701,1771534231865,-902.01364559,7.499e-05,2]
[406008706,1771534231908,-530.42633398,7.499e-05,2]
[406008707,1771534231919,-513.23543468,7.499e-05,2]
[406008757,1771534245442,-506.96898466,7.499e-05,2]
[406008764,1771534246096,-1716.87456937,7.499e-05,2]
[406008766,1771534402270,300.0,6.755e-05,2]
[406008767,1771534507698,166585.28,7e-05,2]